{"text_format":"1","workbook":"xlsx","n_sheets":1,"sheets":["Tabelle1"],"not_rendered":{"charts":0,"images":0,"macros":1,"external_links":0,"defined_names":0,"comments":0,"pivot_tables":0},"unopened":[],"bounds":{"document_bytes":16777216,"sheet_cells":100000,"rows_first":2000,"rows_last":500,"rows_between":2000,"halvings":0,"cell_chars":16384,"cell_head_chars":4096},"cells_cut":0,"cells_raw":0,"read":"whole","date_system":"1900"}

{"sheet":"Tabelle1","index":0,"n_rows":14,"n_cols":6,"rows_kept":14,"cut":false,"hidden":false,"merged":[]}
["English",null,"Deutsch",null,"Schweizer Deutsch"]
["Month","Zahl","Monat","Zahl","Monet","Zahl"]
["January",{"$f":"sbMonatsZahl(A3)","v":1},"Januar",{"$f":"sbMonatsZahl(C3)","v":1},"Jänner",{"$f":"sbMonatsZahl(E3)","v":1}]
["February",{"$f":"sbMonatsZahl(A4)","v":2},"Februar",{"$f":"sbMonatsZahl(C4)","v":2},"Hornig",{"$f":"sbMonatsZahl(E4)","v":2}]
["March",{"$f":"sbMonatsZahl(A5)","v":3},"März",{"$f":"sbMonatsZahl(C5)","v":3},"Merze",{"$f":"sbMonatsZahl(E5)","v":3}]
["April",{"$f":"sbMonatsZahl(A6)","v":4},"April",{"$f":"sbMonatsZahl(C6)","v":4},"Abrele",{"$f":"sbMonatsZahl(E6)","v":4}]
["May",{"$f":"sbMonatsZahl(A7)","v":5},"Mai",{"$f":"sbMonatsZahl(C7)","v":5},"Mäie",{"$f":"sbMonatsZahl(E7)","v":5}]
["June",{"$f":"sbMonatsZahl(A8)","v":6},"Juni",{"$f":"sbMonatsZahl(C8)","v":6},"Brachet",{"$f":"sbMonatsZahl(E8)","v":6}]
["July",{"$f":"sbMonatsZahl(A9)","v":7},"Juli",{"$f":"sbMonatsZahl(C9)","v":7},"Heuet",{"$f":"sbMonatsZahl(E9)","v":7}]
["August",{"$f":"sbMonatsZahl(A10)","v":8},"August",{"$f":"sbMonatsZahl(C10)","v":8},"Augschte",{"$f":"sbMonatsZahl(E10)","v":8}]
["September",{"$f":"sbMonatsZahl(A11)","v":9},"September",{"$f":"sbMonatsZahl(C11)","v":9},"Herbschtmonet",{"$f":"sbMonatsZahl(E11)","v":9}]
["October",{"$f":"sbMonatsZahl(A12)","v":10},"Oktober",{"$f":"sbMonatsZahl(C12)","v":10},"Wiimonet",{"$f":"sbMonatsZahl(E12)","v":10}]
["November",{"$f":"sbMonatsZahl(A13)","v":11},"November",{"$f":"sbMonatsZahl(C13)","v":11},"Wintermonet",{"$f":"sbMonatsZahl(E13)","v":11}]
["December",{"$f":"sbMonatsZahl(A14)","v":12},"Dezember",{"$f":"sbMonatsZahl(C14)","v":12},"Chrischtmonet",{"$f":"sbMonatsZahl(E14)","v":12}]